{"text_format":"3","workbook":"xlsx","n_sheets":7,"sheets":["Montag","Dienstag","Mittwoch","Donnerstag","Freitag","Samstag","Sonntag"],"not_rendered":{"defined_names":21},"read":"whole","date_system":"1900"}

{"sheet":"Montag","index":0,"n_rows":10,"n_cols":13,"rows_kept":10,"merged":[[1,1,1,4],[1,8,1,9],[1,10,1,12],[2,1,2,4],[2,8,2,9],[2,10,2,12]]}
[]
[null,"SCHICHTPLAN",{"$nulls":6},"Für die Woche vom: ",null,"Datum"]
[null,"Montag",{"$nulls":6},"Abteilungsname: ",null,"Name"]
[]
[null,"Mitarbeiter","7:00 Uhr","8:00 Uhr","9:00 h","10:00 Uhr","11:00 UHR","12:00 UHR","13:00 UHR","14:00 UHR","15:00 UHR","Krank?","Gesamt"]
[null,"Name 1","Vorgesetzter","Vorgesetzter","Vorgesetzter","Vorgesetzter","Vorgesetzter","Vorgesetzter","Vorgesetzter","Vorgesetzter","Vorgesetzter",null,{"$f":"COUNTIF(Montag[[#This Row],[7:00 Uhr]:[15:00 UHR]],\"*\")","v":9}]
[null,"Name 2",null,"Kassierer","Kassierer","Kassierer","Kassierer",{"$nulls":5},{"$f":"COUNTIF(Montag[[#This Row],[7:00 Uhr]:[15:00 UHR]],\"*\")","v":4}]
[null,"Name 3",null,"Empfang","Empfang","Empfang","Empfang","Empfang","Empfang","Empfang",null,null,{"$f":"COUNTIF(Montag[[#This Row],[7:00 Uhr]:[15:00 UHR]],\"*\")","v":7}]
[null,"Name 4",null,"Empfang","Empfang","Empfang","Empfang","Empfang","Empfang","Empfang",null,null,{"$f":"COUNTIF(Montag[[#This Row],[7:00 Uhr]:[15:00 UHR]],\"*\")","v":7}]
[null,"Name 5",{"$nulls":9},"Krank",{"$f":"COUNTIF(Montag[[#This Row],[7:00 Uhr]:[15:00 UHR]],\"*\")","v":0}]

{"sheet":"Dienstag","index":1,"n_rows":10,"n_cols":13,"rows_kept":10,"merged":[[1,1,1,4],[1,8,1,9],[1,10,1,12],[2,1,2,4],[2,8,2,9],[2,10,2,12]]}
[]
[null,"SCHICHTPLAN",{"$nulls":6},"Für die Woche vom: ",null,"Datum"]
[null,"Dienstag",{"$nulls":6},"Abteilungsname: ",null,"Name"]
[]
[null,"Mitarbeiter","7:00 Uhr","8:00 Uhr","9:00 h","10:00 Uhr","11:00 UHR","12:00 UHR","13:00 UHR","14:00 UHR","15:00 UHR","Krank?","Gesamt"]
[null,"Name 1","Vorgesetzter","Vorgesetzter","Vorgesetzter","Vorgesetzter","Vorgesetzter","Vorgesetzter","Vorgesetzter","Vorgesetzter","Vorgesetzter",null,{"$f":"COUNTIF(Dienstag[[#This Row],[7:00 Uhr]:[15:00 UHR]],\"*\")","v":9}]
[null,"Name 2",null,"Kassierer","Kassierer","Kassierer","Kassierer",{"$nulls":5},{"$f":"COUNTIF(Dienstag[[#This Row],[7:00 Uhr]:[15:00 UHR]],\"*\")","v":4}]
[null,"Name 3",null,"Empfang","Empfang","Empfang","Empfang","Empfang","Empfang","Empfang",null,null,{"$f":"COUNTIF(Dienstag[[#This Row],[7:00 Uhr]:[15:00 UHR]],\"*\")","v":7}]
[null,"Name 4",null,"Empfang","Empfang","Empfang","Empfang","Empfang","Empfang","Empfang",null,null,{"$f":"COUNTIF(Dienstag[[#This Row],[7:00 Uhr]:[15:00 UHR]],\"*\")","v":7}]
[null,"Name 5",{"$nulls":9},"Krank",{"$f":"COUNTIF(Dienstag[[#This Row],[7:00 Uhr]:[15:00 UHR]],\"*\")","v":0}]

{"sheet":"Mittwoch","index":2,"n_rows":10,"n_cols":13,"rows_kept":10,"merged":[[1,1,1,4],[1,8,1,9],[1,10,1,12],[2,1,2,4],[2,8,2,9],[2,10,2,12]]}
[]
[null,"SCHICHTPLAN",{"$nulls":6},"Für die Woche vom: ",null,"Datum"]
[null,"Mittwoch",{"$nulls":6},"Abteilungsname: ",null,"Name"]
[]
[null,"Mitarbeiter","7:00 Uhr","8:00 Uhr","9:00 h","10:00 Uhr","11:00 UHR","12:00 UHR","13:00 UHR","14:00 UHR","15:00 UHR","Krank?","Gesamt"]
[null,"Name 1","Vorgesetzter","Vorgesetzter","Vorgesetzter","Vorgesetzter","Vorgesetzter","Vorgesetzter","Vorgesetzter","Vorgesetzter","Vorgesetzter",null,{"$f":"COUNTIF(Mittwoch[[#This Row],[7:00 Uhr]:[15:00 UHR]],\"*\")","v":9}]
[null,"Name 2",null,"Kassierer","Kassierer","Kassierer","Kassierer",{"$nulls":5},{"$f":"COUNTIF(Mittwoch[[#This Row],[7:00 Uhr]:[15:00 UHR]],\"*\")","v":4}]
[null,"Name 3",null,"Empfang","Empfang","Empfang","Empfang","Empfang","Empfang","Empfang",null,null,{"$f":"COUNTIF(Mittwoch[[#This Row],[7:00 Uhr]:[15:00 UHR]],\"*\")","v":7}]
[null,"Name 4",null,"Empfang","Empfang","Empfang","Empfang","Empfang","Empfang","Empfang",null,null,{"$f":"COUNTIF(Mittwoch[[#This Row],[7:00 Uhr]:[15:00 UHR]],\"*\")","v":7}]
[null,"Name 5",{"$nulls":9},"Krank",{"$f":"COUNTIF(Mittwoch[[#This Row],[7:00 Uhr]:[15:00 UHR]],\"*\")","v":0}]

{"sheet":"Donnerstag","index":3,"n_rows":10,"n_cols":13,"rows_kept":10,"merged":[[1,1,1,4],[1,8,1,9],[1,10,1,12],[2,1,2,4],[2,8,2,9],[2,10,2,12]]}
[]
[null,"SCHICHTPLAN",{"$nulls":6},"Für die Woche vom: ",null,"Datum"]
[null,"Donnerstag",{"$nulls":6},"Abteilungsname: ",null,"Name"]
[]
[null,"Mitarbeiter","7:00 Uhr","8:00 Uhr","9:00 h","10:00 Uhr","11:00 UHR","12:00 UHR","13:00 UHR","14:00 UHR","15:00 UHR","Krank?","Gesamt"]
[null,"Name 1","Vorgesetzter","Vorgesetzter","Vorgesetzter","Vorgesetzter","Vorgesetzter","Vorgesetzter","Vorgesetzter","Vorgesetzter","Vorgesetzter",null,{"$f":"COUNTIF(Donnerstag[[#This Row],[7:00 Uhr]:[15:00 UHR]],\"*\")","v":9}]
[null,"Name 2",null,"Kassierer","Kassierer","Kassierer","Kassierer",{"$nulls":5},{"$f":"COUNTIF(Donnerstag[[#This Row],[7:00 Uhr]:[15:00 UHR]],\"*\")","v":4}]
[null,"Name 3",null,"Empfang","Empfang","Empfang","Empfang","Empfang","Empfang","Empfang",null,null,{"$f":"COUNTIF(Donnerstag[[#This Row],[7:00 Uhr]:[15:00 UHR]],\"*\")","v":7}]
[null,"Name 4",null,"Empfang","Empfang","Empfang","Empfang","Empfang","Empfang","Empfang",null,null,{"$f":"COUNTIF(Donnerstag[[#This Row],[7:00 Uhr]:[15:00 UHR]],\"*\")","v":7}]
[null,"Name 5",{"$nulls":9},"Krank",{"$f":"COUNTIF(Donnerstag[[#This Row],[7:00 Uhr]:[15:00 UHR]],\"*\")","v":0}]

{"sheet":"Freitag","index":4,"n_rows":10,"n_cols":13,"rows_kept":10,"merged":[[1,1,1,4],[1,8,1,9],[1,10,1,12],[2,1,2,4],[2,8,2,9],[2,10,2,12]]}
[]
[null,"SCHICHTPLAN",{"$nulls":6},"Für die Woche vom: ",null,"Datum"]
[null,"Freitag",{"$nulls":6},"Abteilungsname: ",null,"Name"]
[]
[null,"Mitarbeiter","7:00 Uhr","8:00 Uhr","9:00 h","10:00 Uhr","11:00 UHR","12:00 UHR","13:00 UHR","14:00 UHR","15:00 UHR","Krank?","Gesamt"]
[null,"Name 1","Vorgesetzter","Vorgesetzter","Vorgesetzter","Vorgesetzter","Vorgesetzter","Vorgesetzter","Vorgesetzter","Vorgesetzter","Vorgesetzter",null,{"$f":"COUNTIF(Freitag[[#This Row],[7:00 Uhr]:[15:00 UHR]],\"*\")","v":9}]
[null,"Name 2",null,"Kassierer","Kassierer","Kassierer","Kassierer",{"$nulls":5},{"$f":"COUNTIF(Freitag[[#This Row],[7:00 Uhr]:[15:00 UHR]],\"*\")","v":4}]
[null,"Name 3",null,"Empfang","Empfang","Empfang","Empfang","Empfang","Empfang","Empfang",null,null,{"$f":"COUNTIF(Freitag[[#This Row],[7:00 Uhr]:[15:00 UHR]],\"*\")","v":7}]
[null,"Name 4",null,"Empfang","Empfang","Empfang","Empfang","Empfang","Empfang","Empfang",null,null,{"$f":"COUNTIF(Freitag[[#This Row],[7:00 Uhr]:[15:00 UHR]],\"*\")","v":7}]
[null,"Name 5",{"$nulls":9},"Krank",{"$f":"COUNTIF(Freitag[[#This Row],[7:00 Uhr]:[15:00 UHR]],\"*\")","v":0}]

{"sheet":"Samstag","index":5,"n_rows":10,"n_cols":13,"rows_kept":10,"merged":[[1,1,1,4],[1,8,1,9],[1,10,1,12],[2,1,2,4],[2,8,2,9],[2,10,2,12]]}
[]
[null,"SCHICHTPLAN",{"$nulls":6},"Für die Woche vom: ",null,"Datum"]
[null,"Samstag",{"$nulls":6},"Abteilungsname: ",null,"Name"]
[]
[null,"Mitarbeiter","7:00 Uhr","8:00 Uhr","9:00 h","10:00 Uhr","11:00 UHR","12:00 UHR","13:00 UHR","14:00 UHR","15:00 UHR","Krank?","Gesamt"]
[null,"Name 1","Vorgesetzter","Vorgesetzter","Vorgesetzter","Vorgesetzter","Vorgesetzter","Vorgesetzter","Vorgesetzter","Vorgesetzter","Vorgesetzter",null,{"$f":"COUNTIF(Samstag[[#This Row],[7:00 Uhr]:[15:00 UHR]],\"*\")","v":9}]
[null,"Name 2",null,"Kassierer","Kassierer","Kassierer","Kassierer",{"$nulls":5},{"$f":"COUNTIF(Samstag[[#This Row],[7:00 Uhr]:[15:00 UHR]],\"*\")","v":4}]
[null,"Name 3",null,"Empfang","Empfang","Empfang","Empfang","Empfang","Empfang","Empfang",null,null,{"$f":"COUNTIF(Samstag[[#This Row],[7:00 Uhr]:[15:00 UHR]],\"*\")","v":7}]
[null,"Name 4",null,"Empfang","Empfang","Empfang","Empfang","Empfang","Empfang","Empfang",null,null,{"$f":"COUNTIF(Samstag[[#This Row],[7:00 Uhr]:[15:00 UHR]],\"*\")","v":7}]
[null,"Name 5",{"$nulls":9},"Krank",{"$f":"COUNTIF(Samstag[[#This Row],[7:00 Uhr]:[15:00 UHR]],\"*\")","v":0}]

{"sheet":"Sonntag","index":6,"n_rows":10,"n_cols":13,"rows_kept":10,"merged":[[1,1,1,4],[1,8,1,9],[1,10,1,12],[2,1,2,4],[2,8,2,9],[2,10,2,12]]}
[]
[null,"SCHICHTPLAN",{"$nulls":6},"Für die Woche vom: ",null,"Datum"]
[null,"Sonntag",{"$nulls":6},"Abteilungsname: ",null,"Name"]
[]
[null,"Mitarbeiter","7:00 Uhr","8:00 Uhr","9:00 h","10:00 Uhr","11:00 UHR","12:00 UHR","13:00 UHR","14:00 UHR","15:00 UHR","Krank?","Gesamt"]
[null,"Name 1","Vorgesetzter","Vorgesetzter","Vorgesetzter","Vorgesetzter","Vorgesetzter","Vorgesetzter","Vorgesetzter","Vorgesetzter","Vorgesetzter",null,{"$f":"COUNTIF(Sonntag[[#This Row],[7:00 Uhr]:[15:00 UHR]],\"*\")","v":9}]
[null,"Name 2",null,"Kassierer","Kassierer","Kassierer","Kassierer",{"$nulls":5},{"$f":"COUNTIF(Sonntag[[#This Row],[7:00 Uhr]:[15:00 UHR]],\"*\")","v":4}]
[null,"Name 3",null,"Empfang","Empfang","Empfang","Empfang","Empfang","Empfang","Empfang",null,null,{"$f":"COUNTIF(Sonntag[[#This Row],[7:00 Uhr]:[15:00 UHR]],\"*\")","v":7}]
[null,"Name 4",null,"Empfang","Empfang","Empfang","Empfang","Empfang","Empfang","Empfang",null,null,{"$f":"COUNTIF(Sonntag[[#This Row],[7:00 Uhr]:[15:00 UHR]],\"*\")","v":7}]
[null,"Name 5",{"$nulls":9},"Krank",{"$f":"COUNTIF(Sonntag[[#This Row],[7:00 Uhr]:[15:00 UHR]],\"*\")","v":0}]